[Event "Titled Tuesday Blitz November 15 Late 2022"]
[White "Tan, Zhongyi"]
[Black "Kollars, Dmitrij"]
[WhiteFideId "8603642"]
[BlackFideId "12909572"]
[WhiteElo "2510"]
[BlackElo "2584"]
[Result "0-1"]
[Round "05"]
[TimeControl "180+1"]
[Date "2022.11.15"]
[WhiteClock "0:00:05"]
[BlackClock "0:00:10"]

1. d4 {[%clk 0:03:00]}  Nf6 {[%clk 0:02:55]} 2. c4 {[%clk 0:03:00]}  e6 {[%clk 0:02:51]} 3. Nc3 {[%clk 0:03:01]}  Bb4 {[%clk 0:02:50]} 4. e3 {[%clk 0:03:01]}  O-O {[%clk 0:02:47]} 5. Bd3 {[%clk 0:02:59]}  c5 {[%clk 0:02:46]} 6. Nf3 {[%clk 0:02:55]}  b6 {[%clk 0:02:46]} 7. O-O {[%clk 0:02:52]}  Bb7 {[%clk 0:02:46]} 8. Na4 {[%clk 0:02:52]}  cxd4 {[%clk 0:02:46]} 9. exd4 {[%clk 0:02:51]}  Re8 {[%clk 0:02:46]} 10. a3 {[%clk 0:02:51]}  Bf8 {[%clk 0:02:46]} 11. b4 {[%clk 0:02:43]}  Bxf3 {[%clk 0:02:45]} 12. Qxf3 {[%clk 0:02:43]}  Nc6 {[%clk 0:02:45]} 13. Bb2 {[%clk 0:02:34]}  d5 {[%clk 0:02:36]} 14. Rad1 {[%clk 0:02:31]}  dxc4 {[%clk 0:02:30]} 15. Bxc4 {[%clk 0:02:30]}  Nd5 {[%clk 0:02:27]} 16. Nc3 {[%clk 0:02:29]}  Nce7 {[%clk 0:02:25]} 17. Bb5 {[%clk 0:02:19]}  Nxc3 {[%clk 0:02:25]} 18. Bxc3 {[%clk 0:02:19]}  Nd5 {[%clk 0:02:25]} 19. Bxe8 {[%clk 0:02:18]}  Qxe8 {[%clk 0:02:26]} 20. Bd2 {[%clk 0:02:16]}  g6 {[%clk 0:02:14]} 21. h4 {[%clk 0:02:16]}  Bg7 {[%clk 0:02:13]} 22. h5 {[%clk 0:02:12]}  Bxd4 {[%clk 0:02:02]} 23. Bg5 {[%clk 0:02:01]}  Bb2 {[%clk 0:01:50]} 24. Rfe1 {[%clk 0:01:48]}  Qc6 {[%clk 0:01:45]} 25. Bc1 {[%clk 0:01:21]}  Bh8 {[%clk 0:01:40]} 26. Re2 {[%clk 0:00:51]}  Rc8 {[%clk 0:01:33]} 27. Bb2 {[%clk 0:00:50]}  Bxb2 {[%clk 0:01:17]} 28. Rxb2 {[%clk 0:00:50]}  Qc3 {[%clk 0:01:18]} 29. hxg6 {[%clk 0:00:24]}  hxg6 {[%clk 0:01:17]} 30. Rb3 {[%clk 0:00:23]}  Qe5 {[%clk 0:01:13]} 31. Rbd3 {[%clk 0:00:21]}  Kg7 {[%clk 0:01:11]} 32. Qg3 {[%clk 0:00:20]}  Nf4 {[%clk 0:01:04]} 33. Re3 {[%clk 0:00:09]}  Ne2+ {[%clk 0:01:05]} 34. Rxe2 {[%clk 0:00:09]}  Qxe2 {[%clk 0:01:05]} 35. Qd3 {[%clk 0:00:08]}  Qh5 {[%clk 0:00:54]} 36. Qd4+ {[%clk 0:00:06]}  e5 {[%clk 0:00:55]} 37. Qd5 {[%clk 0:00:07]}  Rh8 {[%clk 0:00:54]} 38. Kf1 {[%clk 0:00:06]}  Qf5 {[%clk 0:00:52]} 39. g3 {[%clk 0:00:06]}  Rc8 {[%clk 0:00:49]} 40. Re1 {[%clk 0:00:05]}  Rc2 {[%clk 0:00:48]} 41. Qxe5+ {[%clk 0:00:04]}  Qxe5 {[%clk 0:00:43]} 42. Rxe5 {[%clk 0:00:05]}  Rc3 {[%clk 0:00:44]} 43. Re3 {[%clk 0:00:04]}  Rxe3 {[%clk 0:00:43]} 44. fxe3 {[%clk 0:00:05]}  Kf6 {[%clk 0:00:43]} 45. Ke2 {[%clk 0:00:06]}  Ke5 {[%clk 0:00:37]} 46. Kd3 {[%clk 0:00:04]}  Kf5 {[%clk 0:00:30]} 47. Ke2 {[%clk 0:00:03]}  Kg4 {[%clk 0:00:29]} 48. Kf2 {[%clk 0:00:04]}  f5 {[%clk 0:00:20]} 49. b5 {[%clk 0:00:03]}  Kh3 {[%clk 0:00:20]} 50. Kf3 {[%clk 0:00:03]}  g5 {[%clk 0:00:16]} 51. a4 {[%clk 0:00:03]}  g4+ {[%clk 0:00:07]} 52. Kf4 {[%clk 0:00:03]}  Kg2 {[%clk 0:00:07]} 53. Kxf5 {[%clk 0:00:03]}  Kxg3 {[%clk 0:00:08]} 54. e4 {[%clk 0:00:04]}  Kf3 {[%clk 0:00:06]} 55. e5 {[%clk 0:00:05]}  g3 {[%clk 0:00:07]} 56. e6 {[%clk 0:00:06]}  g2 {[%clk 0:00:08]} 57. e7 {[%clk 0:00:07]}  g1=Q {[%clk 0:00:08]} 58. e8=Q {[%clk 0:00:07]}  Qg4+ {[%clk 0:00:09]} 59. Kf6 {[%clk 0:00:07]}  Qxa4 {[%clk 0:00:09]} 60. Qc6+ {[%clk 0:00:07]}  Ke3 {[%clk 0:00:09]} 61. Ke6 {[%clk 0:00:07]}  Kd3 {[%clk 0:00:07]} 62. Kd6 {[%clk 0:00:07]}  Qf4+ {[%clk 0:00:06]} 63. Kd7 {[%clk 0:00:06]}  Qf7+ {[%clk 0:00:05]} 64. Kc8 {[%clk 0:00:06]}  Kd4 {[%clk 0:00:02]} 65. Kb8 {[%clk 0:00:07]}  Qe7 {[%clk 0:00:03]} 66. Ka8 {[%clk 0:00:06]}  Ke5 {[%clk 0:00:02]} 67. Kb8 {[%clk 0:00:06]}  Kd4 {[%clk 0:00:03]} 68. Ka8 {[%clk 0:00:06]}  Qf7 {[%clk 0:00:03]} 69. Kb8 {[%clk 0:00:07]}  Qg7 {[%clk 0:00:04]} 70. Ka8 {[%clk 0:00:07]}  Qe7 {[%clk 0:00:04]} 71. Kb8 {[%clk 0:00:07]}  Qf7 {[%clk 0:00:04]} 72. Ka8 {[%clk 0:00:08]}  Qe7 {[%clk 0:00:05]} 73. Kb8 {[%clk 0:00:08]}  Qg7 {[%clk 0:00:04]} 74. Ka8 {[%clk 0:00:09]}  Qh7 {[%clk 0:00:05]} 75. Kb8 {[%clk 0:00:09]}  Kd3 {[%clk 0:00:05]} 76. Ka8 {[%clk 0:00:09]}  Qg7 {[%clk 0:00:06]} 77. Kb8 {[%clk 0:00:10]}  Qa1 {[%clk 0:00:07]} 78. Kb7 {[%clk 0:00:09]}  Qa5 {[%clk 0:00:07]} 79. Kb8 {[%clk 0:00:09]}  Kd4 {[%clk 0:00:07]} 80. Kb7 {[%clk 0:00:09]}  Ke3 {[%clk 0:00:08]} 81. Kb8 {[%clk 0:00:09]}  Kd3 {[%clk 0:00:08]} 82. Kb7 {[%clk 0:00:10]}  Kd4 {[%clk 0:00:08]} 83. Kb8 {[%clk 0:00:10]}  a6 {[%clk 0:00:09]} 84. Qd6+ {[%clk 0:00:06]}  Kc4 {[%clk 0:00:09]} 85. Qc6+ {[%clk 0:00:07]}  Kb4 {[%clk 0:00:10]} 86. bxa6 {[%clk 0:00:06]}  Qxa6 {[%clk 0:00:11]} 87. Kc7 {[%clk 0:00:07]}  Qa7+ {[%clk 0:00:10]} 88. Kd6 {[%clk 0:00:07]}  Qb8+ {[%clk 0:00:10]} 89. Kd5 {[%clk 0:00:06]}  Qg8+ {[%clk 0:00:11]} 90. Ke5 {[%clk 0:00:06]}  Qg5+ {[%clk 0:00:11]} 91. Kd4 {[%clk 0:00:05]}  Qd2+ {[%clk 0:00:11]} 92. Ke5 {[%clk 0:00:05]}  Qc3+ {[%clk 0:00:10]} 0-1


[Site "https://www.chess.com"]

[Event "Titled Tuesday Blitz November 15 Late 2022"]
[White "Torres Dominguez, David"]
[Black "Vujic, Mihailo"]
[WhiteFideId "2220857"]
[BlackFideId "918873"]
[WhiteElo "2037"]
[BlackElo "2256"]
[Result "1-0"]
[Round "05"]
[TimeControl "180+1"]
[Date "2022.11.16"]
[WhiteClock "0:01:31"]
[BlackClock "0:01:48"]

1. e4 {[%clk 0:03:00]}  e5 {[%clk 0:02:58]} 2. Bc4 {[%clk 0:02:59]}  Nc6 {[%clk 0:02:59]} 3. Nc3 {[%clk 0:02:58]}  Nf6 {[%clk 0:02:58]} 4. d3 {[%clk 0:02:56]}  Bc5 {[%clk 0:02:58]} 5. f4 {[%clk 0:02:56]}  d6 {[%clk 0:02:57]} 6. Nf3 {[%clk 0:02:56]}  a6 {[%clk 0:02:57]} 7. Qe2 {[%clk 0:02:37]}  Bg4 {[%clk 0:02:54]} 8. Be3 {[%clk 0:02:32]}  Bxe3 {[%clk 0:02:50]} 9. Qxe3 {[%clk 0:02:31]}  Bxf3 {[%clk 0:02:51]} 10. Qxf3 {[%clk 0:02:31]}  Nd4 {[%clk 0:02:52]} 11. Qf2 {[%clk 0:02:31]}  Ng4 {[%clk 0:02:49]} 12. Qd2 {[%clk 0:02:28]}  exf4 {[%clk 0:02:47]} 13. O-O {[%clk 0:02:26]}  g5 {[%clk 0:02:19]} 14. a3 {[%clk 0:02:24]}  Ne3 {[%clk 0:02:17]} 15. Bxf7+ {[%clk 0:02:11]}  Kxf7 {[%clk 0:02:15]} 16. Qxe3 {[%clk 0:02:09]}  Nxc2 {[%clk 0:02:13]} 17. Qh3 {[%clk 0:02:03]}  Nxa1 {[%clk 0:02:09]} 18. g3 {[%clk 0:01:53]}  Qf6 {[%clk 0:02:06]} 19. Nd5 {[%clk 0:01:48]}  Qd4+ {[%clk 0:02:04]} 20. Kh1 {[%clk 0:01:48]}  Qxd3 {[%clk 0:02:00]} 21. Qf5+ {[%clk 0:01:37]}  Kg7 {[%clk 0:01:51]} 22. Qxg5+ {[%clk 0:01:36]}  Kf7 {[%clk 0:01:50]} 23. Qf6+ {[%clk 0:01:31]}  Ke8 {[%clk 0:01:48]} 24. Qe7# {[%clk 0:01:31]} 1-0


[Site "https://www.chess.com"]

[Event "Titled Tuesday Blitz November 15 Late 2022"]
[White "Ward, Ieuan C"]
[Black "Sanchez Enriquez, Oscar Gerardo"]
[WhiteFideId "406627"]
[BlackFideId "5106311"]
[WhiteElo "2341"]
[BlackElo "2375"]
[Result "0-1"]
[Round "05"]
[TimeControl "180+1"]
[Date "2022.11.16"]
[WhiteClock "0:00:13"]
[BlackClock "0:00:53"]

1. e4 {[%clk 0:03:00]}  d6 {[%clk 0:03:00]} 2. d4 {[%clk 0:03:00]}  Nf6 {[%clk 0:03:00]} 3. Nc3 {[%clk 0:03:01]}  g6 {[%clk 0:03:01]} 4. Be2 {[%clk 0:03:00]}  Bg7 {[%clk 0:03:00]} 5. Be3 {[%clk 0:02:59]}  c6 {[%clk 0:02:54]} 6. f3 {[%clk 0:02:52]}  Qa5 {[%clk 0:02:53]} 7. Qd2 {[%clk 0:02:51]}  h5 {[%clk 0:02:53]} 8. Nh3 {[%clk 0:02:49]}  Bxh3 {[%clk 0:02:52]} 9. gxh3 {[%clk 0:02:49]}  Nbd7 {[%clk 0:02:53]} 10. O-O-O {[%clk 0:02:44]}  b5 {[%clk 0:02:51]} 11. a3 {[%clk 0:02:37]}  Nb6 {[%clk 0:02:49]} 12. Kb1 {[%clk 0:02:29]}  Nc4 {[%clk 0:02:49]} 13. Bxc4 {[%clk 0:02:27]}  bxc4 {[%clk 0:02:50]} 14. Nd5 {[%clk 0:02:23]}  Qxd2 {[%clk 0:02:50]} 15. Nxf6+ {[%clk 0:02:22]}  Bxf6 {[%clk 0:02:50]} 16. Rxd2 {[%clk 0:02:22]}  d5 {[%clk 0:02:50]} 17. e5 {[%clk 0:02:19]}  Bg7 {[%clk 0:02:50]} 18. Bg5 {[%clk 0:02:13]}  e6 {[%clk 0:02:49]} 19. Ka2 {[%clk 0:02:01]}  Rb8 {[%clk 0:02:44]} 20. b3 {[%clk 0:02:00]}  Kd7 {[%clk 0:02:33]} 21. Rb1 {[%clk 0:01:25]}  Rb5 {[%clk 0:02:29]} 22. bxc4 {[%clk 0:01:23]}  dxc4 {[%clk 0:02:30]} 23. f4 {[%clk 0:01:14]}  Rhb8 {[%clk 0:02:28]} 24. Rxb5 {[%clk 0:01:12]}  Rxb5 {[%clk 0:02:19]} 25. Re2 {[%clk 0:01:00]}  c3 {[%clk 0:02:08]} 26. Bh4 {[%clk 0:00:56]}  Rb2+ {[%clk 0:02:05]} 27. Ka1 {[%clk 0:00:56]}  Bf8 {[%clk 0:02:05]} 28. Be1 {[%clk 0:00:56]}  Bxa3 {[%clk 0:01:56]} 29. Bxc3 {[%clk 0:00:57]}  Rb5 {[%clk 0:01:57]} 30. Ka2 {[%clk 0:00:50]}  Be7 {[%clk 0:01:55]} 31. Bb2 {[%clk 0:00:48]}  c5 {[%clk 0:01:43]} 32. c4 {[%clk 0:00:36]}  Ra5+ {[%clk 0:01:32]} 33. Kb3 {[%clk 0:00:34]}  Kc6 {[%clk 0:01:32]} 34. Ba3 {[%clk 0:00:29]}  Ra6 {[%clk 0:01:06]} 35. Rd2 {[%clk 0:00:29]}  Rb6+ {[%clk 0:01:06]} 36. Kc2 {[%clk 0:00:24]}  Ra6 {[%clk 0:01:03]} 37. d5+ {[%clk 0:00:24]}  Kb6 {[%clk 0:01:00]} 38. Bb2 {[%clk 0:00:23]}  Ra4 {[%clk 0:00:58]} 39. Kb3 {[%clk 0:00:21]}  Rb4+ {[%clk 0:00:59]} 40. Kc3 {[%clk 0:00:21]}  Ra4 {[%clk 0:00:56]} 41. d6 {[%clk 0:00:21]}  Bd8 {[%clk 0:00:56]} 42. Kb3 {[%clk 0:00:20]}  Rb4+ {[%clk 0:00:55]} 43. Kc3 {[%clk 0:00:21]}  Ra4 {[%clk 0:00:56]} 44. Kb3 {[%clk 0:00:21]}  Rb4+ {[%clk 0:00:56]} 45. Kc2 {[%clk 0:00:21]}  Kc6 {[%clk 0:00:57]} 46. Kc3 {[%clk 0:00:21]}  Ba5 {[%clk 0:00:55]} 47. Kd3 {[%clk 0:00:17]}  Rb3+ {[%clk 0:00:53]} 48. Kc2 {[%clk 0:00:15]}  Rxb2+ {[%clk 0:00:53]} 49. Kxb2 {[%clk 0:00:13]}  Bxd2 {[%clk 0:00:53]} 0-1


[Site "https://www.chess.com"]

[Event "Titled Tuesday Blitz November 15 Late 2022"]
[White "Yano, William Jorge Froes"]
[Black "Souleidis, Georgios"]
[WhiteFideId "2112949"]
[BlackFideId "4206827"]
[WhiteElo "2122"]
[BlackElo "2401"]
[Result "1-0"]
[Round "05"]
[TimeControl "180+1"]
[Date "2022.11.16"]
[WhiteClock "0:00:17"]
[BlackClock "0:00:03"]

1. e4 {[%clk 0:03:00]}  c5 {[%clk 0:02:58]} 2. Nf3 {[%clk 0:03:00]}  e6 {[%clk 0:02:59]} 3. c3 {[%clk 0:02:59]}  d5 {[%clk 0:02:52]} 4. e5 {[%clk 0:02:59]}  d4 {[%clk 0:02:40]} 5. Bd3 {[%clk 0:02:59]}  Nc6 {[%clk 0:02:34]} 6. Be4 {[%clk 0:02:58]}  Nge7 {[%clk 0:02:34]} 7. O-O {[%clk 0:02:55]}  Qc7 {[%clk 0:02:25]} 8. Qe2 {[%clk 0:02:52]}  Bd7 {[%clk 0:02:15]} 9. Re1 {[%clk 0:02:34]}  Rd8 {[%clk 0:02:13]} 10. d3 {[%clk 0:02:32]}  Ng6 {[%clk 0:02:12]} 11. cxd4 {[%clk 0:02:20]}  cxd4 {[%clk 0:02:04]} 12. Na3 {[%clk 0:02:07]}  Bb4 {[%clk 0:01:33]} 13. Nb5 {[%clk 0:01:40]}  Qb8 {[%clk 0:01:11]} 14. Bd2 {[%clk 0:01:37]}  Be7 {[%clk 0:00:35]} 15. Bxg6 {[%clk 0:01:28]}  hxg6 {[%clk 0:00:35]} 16. Nbxd4 {[%clk 0:01:29]}  Nxd4 {[%clk 0:00:25]} 17. Nxd4 {[%clk 0:01:28]}  O-O {[%clk 0:00:19]} 18. Bf4 {[%clk 0:01:26]}  Ba4 {[%clk 0:00:14]} 19. Nf3 {[%clk 0:01:17]}  Bb5 {[%clk 0:00:14]} 20. Red1 {[%clk 0:01:14]}  Rd5 {[%clk 0:00:13]} 21. Qe4 {[%clk 0:01:12]}  Rfd8 {[%clk 0:00:12]} 22. d4 {[%clk 0:01:10]}  Bc6 {[%clk 0:00:12]} 23. Qe2 {[%clk 0:01:05]}  a6 {[%clk 0:00:11]} 24. h4 {[%clk 0:01:03]}  R5d7 {[%clk 0:00:11]} 25. Be3 {[%clk 0:01:01]}  Bd5 {[%clk 0:00:09]} 26. Ng5 {[%clk 0:01:00]}  Rc7 {[%clk 0:00:07]} 27. Rac1 {[%clk 0:00:59]}  Rdc8 {[%clk 0:00:07]} 28. b3 {[%clk 0:00:58]}  Rxc1 {[%clk 0:00:07]} 29. Rxc1 {[%clk 0:00:58]}  Rxc1+ {[%clk 0:00:07]} 30. Bxc1 {[%clk 0:00:58]}  Qc7 {[%clk 0:00:08]} 31. Qb2 {[%clk 0:00:50]}  Qc6 {[%clk 0:00:08]} 32. f3 {[%clk 0:00:45]}  Bb4 {[%clk 0:00:08]} 33. Be3 {[%clk 0:00:43]}  a5 {[%clk 0:00:07]} 34. Kh2 {[%clk 0:00:40]}  b6 {[%clk 0:00:06]} 35. Qe2 {[%clk 0:00:36]}  b5 {[%clk 0:00:05]} 36. Qd3 {[%clk 0:00:21]}  Bf8 {[%clk 0:00:05]} 37. Qd2 {[%clk 0:00:20]}  a4 {[%clk 0:00:05]} 38. bxa4 {[%clk 0:00:18]}  bxa4 {[%clk 0:00:06]} 39. Qa5 {[%clk 0:00:18]}  Qc4 {[%clk 0:00:03]} 40. Qa7 {[%clk 0:00:17]} 1-0


[Site "https://www.chess.com"]

[Event "Titled Tuesday Blitz November 15 Late 2022"]
[White "Zhurbinsky, David"]
[Black "Haszon, David"]
[WhiteFideId "2072904"]
[BlackFideId "733610"]
[WhiteElo "2544"]
[BlackElo "2211"]
[Result "0-1"]
[Round "05"]
[TimeControl "180+1"]
[Date "2022.11.16"]
[WhiteClock "0:00:17"]
[BlackClock "0:00:16"]

1. e4 {[%clk 0:03:00]}  c5 {[%clk 0:03:00]} 2. Nf3 {[%clk 0:03:00]}  d6 {[%clk 0:03:00]} 3. d4 {[%clk 0:03:00]}  cxd4 {[%clk 0:03:01]} 4. Nxd4 {[%clk 0:03:00]}  Nf6 {[%clk 0:03:02]} 5. f3 {[%clk 0:03:01]}  a6 {[%clk 0:03:01]} 6. c4 {[%clk 0:03:01]}  e5 {[%clk 0:03:01]} 7. Nc2 {[%clk 0:03:01]}  Be7 {[%clk 0:03:01]} 8. Nc3 {[%clk 0:03:02]}  O-O {[%clk 0:03:02]} 9. Be3 {[%clk 0:03:03]}  Be6 {[%clk 0:03:02]} 10. Be2 {[%clk 0:03:03]}  Nfd7 {[%clk 0:03:02]} 11. O-O {[%clk 0:03:04]}  f5 {[%clk 0:03:03]} 12. exf5 {[%clk 0:03:03]}  Rxf5 {[%clk 0:03:03]} 13. Bd3 {[%clk 0:02:57]}  Rf8 {[%clk 0:02:57]} 14. Be4 {[%clk 0:02:58]}  Nc6 {[%clk 0:02:55]} 15. b3 {[%clk 0:02:54]}  Nf6 {[%clk 0:02:50]} 16. Bd3 {[%clk 0:02:41]}  Kh8 {[%clk 0:02:44]} 17. Qe2 {[%clk 0:02:38]}  d5 {[%clk 0:02:43]} 18. cxd5 {[%clk 0:02:36]}  Nxd5 {[%clk 0:02:42]} 19. Nxd5 {[%clk 0:02:37]}  Qxd5 {[%clk 0:02:41]} 20. Rad1 {[%clk 0:02:37]}  Qa5 {[%clk 0:02:27]} 21. a4 {[%clk 0:02:24]}  Bxb3 {[%clk 0:02:24]} 22. Rb1 {[%clk 0:02:13]}  Qxa4 {[%clk 0:02:04]} 23. Kh1 {[%clk 0:02:02]}  Bf6 {[%clk 0:01:54]} 24. g3 {[%clk 0:01:42]}  Nd4 {[%clk 0:01:44]} 25. Bxd4 {[%clk 0:01:35]}  exd4 {[%clk 0:01:45]} 26. Qe4 {[%clk 0:01:35]}  g6 {[%clk 0:01:34]} 27. Ne1 {[%clk 0:01:32]}  b6 {[%clk 0:01:07]} 28. Ng2 {[%clk 0:01:31]}  Rae8 {[%clk 0:01:06]} 29. Qb7 {[%clk 0:01:27]}  b5 {[%clk 0:00:59]} 30. Nf4 {[%clk 0:01:26]}  Bc2 {[%clk 0:00:54]} 31. Ra1 {[%clk 0:01:21]}  Qb3 {[%clk 0:00:52]} 32. Bxc2 {[%clk 0:01:14]}  Qxc2 {[%clk 0:00:53]} 33. Rxa6 {[%clk 0:01:13]}  d3 {[%clk 0:00:51]} 34. Rc6 {[%clk 0:01:01]}  Qb3 {[%clk 0:00:45]} 35. Rc7 {[%clk 0:00:58]}  Qg8 {[%clk 0:00:37]} 36. Nxd3 {[%clk 0:00:53]}  Rb8 {[%clk 0:00:36]} 37. Qc6 {[%clk 0:00:50]}  b4 {[%clk 0:00:35]} 38. Nf4 {[%clk 0:00:38]}  b3 {[%clk 0:00:31]} 39. Nd5 {[%clk 0:00:38]}  b2 {[%clk 0:00:29]} 40. Rb1 {[%clk 0:00:31]}  Bg7 {[%clk 0:00:28]} 41. Kg2 {[%clk 0:00:14]}  Rfe8 {[%clk 0:00:25]} 42. Nf6 {[%clk 0:00:08]}  Re2+ {[%clk 0:00:21]} 43. Kf1 {[%clk 0:00:08]}  Qe6 {[%clk 0:00:20]} 44. Qxe6 {[%clk 0:00:04]}  Rxe6 {[%clk 0:00:21]} 45. Ne4 {[%clk 0:00:02]}  Ra6 {[%clk 0:00:19]} 46. Rc2 {[%clk 0:00:03]}  Ra1 {[%clk 0:00:18]} 47. Nd2 {[%clk 0:00:04]}  h5 {[%clk 0:00:15]} 48. Ke2 {[%clk 0:00:04]}  Re8+ {[%clk 0:00:15]} 49. Kd1 {[%clk 0:00:02]}  Rd8 {[%clk 0:00:14]} 50. Ke2 {[%clk 0:00:01]}  Rxd2+ {[%clk 0:00:14]} 51. Kxd2 {[%clk 0:00:01]}  Rxb1 {[%clk 0:00:15]} 52. Rc8+ {[%clk 0:00:01]}  Kh7 {[%clk 0:00:14]} 53. Rb8 {[%clk 0:00:02]}  Rh1 {[%clk 0:00:14]} 54. Kc2 {[%clk 0:00:02]}  Rxh2+ {[%clk 0:00:14]} 55. Kb1 {[%clk 0:00:03]}  Rh3 {[%clk 0:00:14]} 56. g4 {[%clk 0:00:03]}  h4 {[%clk 0:00:14]} 57. f4 {[%clk 0:00:03]}  Rh1+ {[%clk 0:00:14]} 58. Kc2 {[%clk 0:00:03]}  b1=Q+ {[%clk 0:00:14]} 59. Rxb1 {[%clk 0:00:03]}  Rxb1 {[%clk 0:00:15]} 60. Kxb1 {[%clk 0:00:04]}  h3 {[%clk 0:00:15]} 61. f5 {[%clk 0:00:05]}  h2 {[%clk 0:00:16]} 62. f6 {[%clk 0:00:04]}  Bxf6 {[%clk 0:00:17]} 63. Kc2 {[%clk 0:00:05]}  h1=Q {[%clk 0:00:17]} 64. g5 {[%clk 0:00:06]}  Bxg5 {[%clk 0:00:16]} 65. Kd3 {[%clk 0:00:07]}  Qd5+ {[%clk 0:00:16]} 66. Kc3 {[%clk 0:00:08]}  Qd2+ {[%clk 0:00:16]} 67. Kc4 {[%clk 0:00:08]}  Bh6 {[%clk 0:00:15]} 68. Kc5 {[%clk 0:00:09]}  Qd3 {[%clk 0:00:16]} 69. Kb4 {[%clk 0:00:09]}  Qc2 {[%clk 0:00:16]} 70. Kb5 {[%clk 0:00:10]}  Qc3 {[%clk 0:00:16]} 71. Ka4 {[%clk 0:00:11]}  Qb2 {[%clk 0:00:16]} 72. Ka5 {[%clk 0:00:11]}  g5 {[%clk 0:00:16]} 73. Ka6 {[%clk 0:00:12]}  g4 {[%clk 0:00:16]} 74. Ka7 {[%clk 0:00:13]}  Kg7 {[%clk 0:00:16]} 75. Ka8 {[%clk 0:00:14]}  Kf7 {[%clk 0:00:17]} 76. Ka7 {[%clk 0:00:15]}  Ke7 {[%clk 0:00:17]} 77. Ka8 {[%clk 0:00:16]}  Kd7 {[%clk 0:00:17]} 78. Ka7 {[%clk 0:00:17]}  Kc7 {[%clk 0:00:17]} 79. Ka6 {[%clk 0:00:18]}  Bd2 {[%clk 0:00:15]} 80. Ka7 {[%clk 0:00:17]}  Qb7# {[%clk 0:00:16]} 0-1


[Site "https://www.chess.com"]

[Event "Titled Tuesday Blitz November 15 Late 2022"]
[White "Zwirs, Nico"]
[Black "Megalios, Konstantinos"]
[WhiteFideId "1036432"]
[BlackFideId "4238044"]
[WhiteElo "2381"]
[BlackElo "2277"]
[Result "1-0"]
[Round "05"]
[TimeControl "180+1"]
[Date "2022.11.16"]
[WhiteClock "0:00:16"]
[BlackClock "0:00:03"]

1. e4 {[%clk 0:03:00]}  c6 {[%clk 0:02:55]} 2. d4 {[%clk 0:03:00]}  d5 {[%clk 0:02:56]} 3. exd5 {[%clk 0:03:01]}  cxd5 {[%clk 0:02:57]} 4. c4 {[%clk 0:03:02]}  Nf6 {[%clk 0:02:56]} 5. Nc3 {[%clk 0:03:03]}  Nc6 {[%clk 0:02:56]} 6. Bg5 {[%clk 0:03:03]}  Be6 {[%clk 0:02:57]} 7. a3 {[%clk 0:03:03]}  g6 {[%clk 0:02:47]} 8. Bxf6 {[%clk 0:03:01]}  exf6 {[%clk 0:02:48]} 9. Be2 {[%clk 0:03:01]}  Bh6 {[%clk 0:02:09]} 10. Bf3 {[%clk 0:03:01]}  Ne7 {[%clk 0:02:09]} 11. c5 {[%clk 0:03:02]}  Kf8 {[%clk 0:02:07]} 12. Nge2 {[%clk 0:03:00]}  Kg7 {[%clk 0:02:07]} 13. h4 {[%clk 0:03:00]}  Re8 {[%clk 0:01:43]} 14. h5 {[%clk 0:02:59]}  Qd7 {[%clk 0:01:42]} 15. Qa4 {[%clk 0:02:52]}  Qxa4 {[%clk 0:01:32]} 16. Nxa4 {[%clk 0:02:53]}  g5 {[%clk 0:01:24]} 17. g3 {[%clk 0:02:47]}  g4 {[%clk 0:01:17]} 18. Bg2 {[%clk 0:02:46]}  Nc6 {[%clk 0:01:01]} 19. Nac3 {[%clk 0:02:18]}  Rad8 {[%clk 0:01:00]} 20. Rd1 {[%clk 0:02:01]}  f5 {[%clk 0:00:55]} 21. O-O {[%clk 0:01:54]}  Ne7 {[%clk 0:00:55]} 22. Nf4 {[%clk 0:01:39]}  Ng8 {[%clk 0:00:54]} 23. Ncxd5 {[%clk 0:01:28]}  Rd7 {[%clk 0:00:28]} 24. Rfe1 {[%clk 0:01:06]}  Kf8 {[%clk 0:00:20]} 25. Nc3 {[%clk 0:00:52]}  Bb3 {[%clk 0:00:18]} 26. Rxe8+ {[%clk 0:00:48]}  Kxe8 {[%clk 0:00:19]} 27. Re1+ {[%clk 0:00:48]}  Kd8 {[%clk 0:00:19]} 28. d5 {[%clk 0:00:37]}  Bf8 {[%clk 0:00:17]} 29. d6 {[%clk 0:00:33]}  Nf6 {[%clk 0:00:14]} 30. Ncd5 {[%clk 0:00:26]}  Bxd5 {[%clk 0:00:12]} 31. Bxd5 {[%clk 0:00:23]}  Nxd5 {[%clk 0:00:09]} 32. Nxd5 {[%clk 0:00:23]}  b6 {[%clk 0:00:08]} 33. b4 {[%clk 0:00:23]}  bxc5 {[%clk 0:00:05]} 34. bxc5 {[%clk 0:00:24]}  Bxd6 {[%clk 0:00:05]} 35. cxd6 {[%clk 0:00:23]}  Rxd6 {[%clk 0:00:06]} 36. Re5 {[%clk 0:00:21]}  Ra6 {[%clk 0:00:02]} 37. Rxf5 {[%clk 0:00:20]}  Rxa3 {[%clk 0:00:02]} 38. Rxf7 {[%clk 0:00:20]}  a5 {[%clk 0:00:02]} 39. Rxh7 {[%clk 0:00:20]}  Rd3 {[%clk 0:00:02]} 40. Nf4 {[%clk 0:00:17]}  Rd2 {[%clk 0:00:02]} 41. Ra7 {[%clk 0:00:16]}  Ra2 {[%clk 0:00:03]} 42. h6 {[%clk 0:00:16]} 1-0


[Site "https://www.chess.com"]

[Event "Titled Tuesday Blitz November 15 Late 2022"]
[White "chess50years"]
[Black "Bogaudinov, Rushan"]
[BlackFideId "4129288"]
[WhiteElo "2150"]
[BlackElo "1997"]
[Result "0-1"]
[Round "05"]
[TimeControl "180+1"]
[Date "2022.11.16"]
[WhiteClock "0:01:01"]
[BlackClock "0:00:59"]

1. c4 {[%clk 0:02:58]}  c5 {[%clk 0:02:45]} 2. Nc3 {[%clk 0:02:58]}  Nc6 {[%clk 0:02:45]} 3. g3 {[%clk 0:02:58]}  g6 {[%clk 0:02:45]} 4. Bg2 {[%clk 0:02:58]}  Bg7 {[%clk 0:02:46]} 5. e3 {[%clk 0:02:57]}  Nf6 {[%clk 0:02:46]} 6. Nge2 {[%clk 0:02:56]}  O-O {[%clk 0:02:45]} 7. O-O {[%clk 0:02:54]}  e6 {[%clk 0:02:46]} 8. d4 {[%clk 0:02:53]}  cxd4 {[%clk 0:02:46]} 9. Nxd4 {[%clk 0:02:52]}  Nxd4 {[%clk 0:02:44]} 10. exd4 {[%clk 0:02:52]}  d5 {[%clk 0:02:44]} 11. cxd5 {[%clk 0:02:52]}  Nxd5 {[%clk 0:02:43]} 12. Nxd5 {[%clk 0:02:50]}  exd5 {[%clk 0:02:44]} 13. Be3 {[%clk 0:02:47]}  Be6 {[%clk 0:02:39]} 14. Qb3 {[%clk 0:02:43]}  Qd7 {[%clk 0:02:39]} 15. Rac1 {[%clk 0:02:38]}  Rfc8 {[%clk 0:02:37]} 16. Rfe1 {[%clk 0:02:29]}  h5 {[%clk 0:02:36]} 17. h4 {[%clk 0:02:28]}  Bf6 {[%clk 0:02:34]} 18. Qd3 {[%clk 0:02:16]}  Kg7 {[%clk 0:02:31]} 19. Qd2 {[%clk 0:02:15]}  Qa4 {[%clk 0:02:21]} 20. a3 {[%clk 0:02:12]}  Qb3 {[%clk 0:02:18]} 21. Rxc8 {[%clk 0:01:53]}  Rxc8 {[%clk 0:02:17]} 22. Rc1 {[%clk 0:01:54]}  Rc4 {[%clk 0:02:11]} 23. Rxc4 {[%clk 0:01:49]}  Qxc4 {[%clk 0:02:09]} 24. Bf1 {[%clk 0:01:44]}  Qa4 {[%clk 0:02:06]} 25. Be2 {[%clk 0:01:39]}  Bf5 {[%clk 0:01:56]} 26. Bf3 {[%clk 0:01:38]}  Qb3 {[%clk 0:01:50]} 27. Qc3 {[%clk 0:01:33]}  Qxc3 {[%clk 0:01:47]} 28. bxc3 {[%clk 0:01:34]}  Be6 {[%clk 0:01:47]} 29. a4 {[%clk 0:01:33]}  Bd8 {[%clk 0:01:46]} 30. Be2 {[%clk 0:01:32]}  Ba5 {[%clk 0:01:45]} 31. Bd2 {[%clk 0:01:29]}  Kf6 {[%clk 0:01:38]} 32. Bf3 {[%clk 0:01:27]}  Ke7 {[%clk 0:01:37]} 33. Kf1 {[%clk 0:01:27]}  Kd6 {[%clk 0:01:37]} 34. Ke2 {[%clk 0:01:28]}  Bd7 {[%clk 0:01:36]} 35. Bxd5 {[%clk 0:01:21]}  Kxd5 {[%clk 0:01:33]} 36. c4+ {[%clk 0:01:22]}  Kxd4 {[%clk 0:01:30]} 37. Bxa5 {[%clk 0:01:22]}  Bxa4 {[%clk 0:01:30]} 38. Bc7 {[%clk 0:01:14]}  Kxc4 {[%clk 0:01:29]} 39. Kd2 {[%clk 0:01:14]}  b5 {[%clk 0:01:10]} 40. Ba5 {[%clk 0:01:13]}  b4 {[%clk 0:01:10]} 41. Bc7 {[%clk 0:01:09]}  Bb3 {[%clk 0:01:03]} 42. Kc1 {[%clk 0:01:07]}  Kb5 {[%clk 0:01:00]} 43. Kb2 {[%clk 0:01:07]}  Bd5 {[%clk 0:00:59]} 44. Be5 {[%clk 0:01:05]}  a5 {[%clk 0:00:59]} 45. Bf4 {[%clk 0:01:04]}  a4 {[%clk 0:00:59]} 46. Bd2 {[%clk 0:01:03]}  a3+ {[%clk 0:00:59]} 47. Kc1 {[%clk 0:01:01]}  b3 {[%clk 0:00:59]} 0-1


[Site "https://www.chess.com"]